fUSD/lending_fUSD_20240831
["ID","MTS","AMOUNT","RATE_DAILY","PERIOD"]
[336771474,1725131432612,-400.533589,0.00012997,2]
[336771475,1725131432621,-400.533589,0.00012997,2]
[336771476,1725131432631,-153.409766,0.00012997,2]
[336771477,1725131432640,-151.0,0.00012997,2]
[336771478,1725131432649,-153.409766,0.00012997,2]
[336771479,1725131432658,-151.0,0.00012997,2]
[336771480,1725131432675,-151.527999,0.00012997,2]
[336771481,1725131432687,-156.690149,0.00012997,2]
[336771482,1725131432697,-156.690149,0.00012997,2]
[336771483,1725131432707,-151.0,0.00012997,2]
[336771484,1725131432716,-3227.3087705,0.00012997,2]
[336771485,1725131432725,-151.0,0.00012997,2]
[336771486,1725131432735,-151.0,0.00012997,2]
[336771487,1725131432744,-151.0,0.00012997,2]
[336771488,1725131432754,-260.605102,0.00012997,2]
[336771489,1725131432764,-260.605102,0.00012997,2]
[336771490,1725131432773,-1354.077843,0.00012997,2]
[336771491,1725131432782,-1354.077843,0.00012997,2]
[336771492,1725131432792,-644.194623,0.00012997,2]
[336771493,1725131432801,-353.925148,0.00012997,2]
[336771494,1725131432811,-644.194623,0.00012997,2]
[336771495,1725131432820,-353.925148,0.00012997,2]
[336771496,1725131432829,-151.0,0.00012997,2]
[336771497,1725131432838,-151.0,0.00012997,2]
[336771498,1725131432848,-151.0,0.00012997,2]
[336771499,1725131432857,-151.0,0.00012997,2]
[336771500,1725131432867,-336.506569,0.00012997,2]
[336771501,1725131432877,-151.0,0.00012997,2]
[336771502,1725131432886,-336.506569,0.00012997,2]
[336771503,1725131432896,-162.587555,0.00012997,2]
[336771504,1725131432905,-151.0,0.00012997,2]
[336771505,1725131432915,-151.0,0.00012997,2]
[336771506,1725131432927,-151.0,0.00012997,2]
[336771507,1725131432937,-227.66511323,0.00012997,2]
[336771508,1725131432946,-1780.939557,0.00012997,2]
[336771509,1725131432955,-151.0,0.00012997,2]
[336771510,1725131432965,-1780.939557,0.00012997,2]
[336771511,1725131432974,-1780.939557,0.00012997,2]
[336771512,1725131432983,-1780.939557,0.00012997,2]
[336771513,1725131432997,-411.454508,0.00012997,2]
[336771514,1725131433007,-411.454508,0.00012997,2]
[336771515,1725131433017,-411.454508,0.00012997,2]
[336771516,1725131433026,-411.454508,0.00012997,2]
[336771517,1725131433037,-278.50838,0.00012997,2]
[336771518,1725131433047,-278.50838,0.00012997,2]
[336771519,1725131433056,-151.0,0.00012997,2]
[336771520,1725131433067,-151.0,0.00012997,2]
[336771521,1725131433076,-278.50838,0.00012997,2]
[336771522,1725131433086,-278.50838,0.00012997,2]
[336771523,1725131433096,-151.0,0.00012997,2]
[336771524,1725131433105,-151.0,0.00012997,2]
[336771525,1725131433115,-151.0,0.00012997,2]
[336771526,1725131433124,-151.0,0.00012997,2]
[336771527,1725131433133,-384.845317,0.00012997,2]
[336771528,1725131433143,-384.845317,0.00012997,2]
[336771529,1725131433152,-151.0,0.00012997,2]
[336771530,1725131433162,-151.0,0.00012997,2]
[336771531,1725131433173,-167.99854,0.00012997,2]
[336771532,1725131433183,-167.99854,0.00012997,2]
[336771533,1725131433192,-151.0,0.00012997,2]
[336771534,1725131433202,-151.0,0.00012997,2]
[336771535,1725131433211,-384.845317,0.00012997,2]
[336771536,1725131433221,-384.845317,0.00012997,2]
[336771537,1725131433231,-151.0,0.00012997,2]
[336771538,1725131433240,-151.0,0.00012997,2]
[336771539,1725131433250,-151.0,0.00012997,2]
[336771540,1725131433259,-151.0,0.00012997,2]
[336771541,1725131433268,-167.99854,0.00012997,2]
[336771542,1725131433277,-167.99854,0.00012997,2]
[336771543,1725131433287,-2630.109566,0.00012997,2]
[336771544,1725131433296,-2630.109566,0.00012997,2]
[336771545,1725131433306,-2630.109566,0.00012997,2]
[336771546,1725131433316,-2630.109566,0.00012997,2]
[336771547,1725131433325,-151.0,0.00012997,2]
[336771548,1725131433335,-151.0,0.00012997,2]
[336771549,1725131433345,-151.0,0.00012997,2]
[336771550,1725131433355,-151.0,0.00012997,2]
[336771551,1725131433365,-671.61922,0.00012997,2]
[336771552,1725131433375,-671.61922,0.00012997,2]
[336771553,1725131433384,-671.61922,0.00012997,2]
[336771554,1725131433394,-671.61922,0.00012997,2]
[336771555,1725131433403,-399.004524,0.00012997,2]
[336771556,1725131433413,-399.004524,0.00012997,2]
[336771557,1725131433423,-151.0,0.00012997,2]
[336771558,1725131433432,-151.0,0.00012997,2]
[336771559,1725131433442,-151.0,0.00012997,2]
[336771560,1725131433451,-193.146678,0.00012997,2]
[336771561,1725131433461,-193.146678,0.00012997,2]
[336771562,1725131433471,-775.44773,0.00012997,2]
[336771563,1725131433481,-775.44773,0.00012997,2]
[336771564,1725131433490,-775.44773,0.00012997,2]
[336771565,1725131433500,-775.44773,0.00012997,2]
[336771566,1725131433510,-255.803918,0.00012997,2]
[336771567,1725131433519,-151.0,0.00012997,2]
[336771568,1725131433529,-151.0,0.00012997,2]
[336771569,1725131433538,-255.803918,0.00012997,2]
[336771570,1725131433548,-151.0,0.00012997,2]
[336771571,1725131433558,-151.0,0.00012997,2]
[336771572,1725131433567,-151.0,0.00012997,2]
[336771573,1725131433577,-151.632063,0.00012997,2]
[336771574,1725131433587,-151.504839,0.00012997,2]
[336771575,1725131433596,-1458.439636,0.00012997,2]
[336771576,1725131433605,-1458.439636,0.00012997,2]
[336771577,1725131433615,-1458.439636,0.00012997,2]
[336771578,1725131433624,-1458.439636,0.00012997,2]
[336771579,1725131433634,-151.0,0.00012997,2]
[336771580,1725131433643,-151.0,0.00012997,2]
[336771581,1725131433653,-151.0,0.00012997,2]
[336771582,1725131433663,-154.813123,0.00012997,2]
[336771583,1725131433674,-151.0,0.00012997,2]
[336771584,1725131433684,-151.0,0.00012997,2]
[336771585,1725131433694,-151.0,0.00012997,2]
[336771586,1725131433704,-151.0,0.00012997,2]
[336771587,1725131433714,-165.86544257,0.00012997,2]
[336771588,1725131433724,-426.18742791,0.00012999,2]
[336771589,1725131433734,-542.0,0.00013,2]
[336771590,1725131433744,-150.0,0.00013,2]
[336771591,1725131433754,-150.0,0.00013,2]
[336771592,1725131433764,-150.0,0.00013,2]
[336771593,1725131433773,-150.0,0.00013,2]
[336771594,1725131433782,-7715.67696902,0.00013,2]
[336771595,1725131433797,-654.99088478,0.00013,2]
[336771596,1725131433809,-7147.2022422,0.00013,2]
[336771597,1725131433820,-2920.8297893,0.00013,2]
[336771746,1725131440109,-151.0,0.00012997,2]
[336771748,1725131440118,-151.0,0.00012997,2]
[336771750,1725131440127,-598.71549999,0.00012997,2]
[336772179,1725131705268,246.07,0.00010122,2]
[336772181,1725132304310,233.76,9.679e-05,2]
[336772182,1725132350774,13552.17793519,0.00010988,2]
[336772184,1725132387410,153.95,0.00010959,2]
[336772185,1725132429708,-160.0,0.00030909,30]
[336772186,1725132429731,-3727.79537039,0.00030909,120]
[336772187,1725132429755,-267.0657218,0.00030909,120]
[336772188,1725132429778,-294.0,0.00030909,120]
[336772189,1725132429803,-6902.9273811,0.00030909,120]
[336772190,1725132429826,-1000.0,0.00030909,30]
[336772191,1725132429849,-1000.0,0.00030909,30]
[336772192,1725132429871,-1000.0,0.00030909,30]
[336772193,1725132429894,-1000.0,0.00030909,30]
[336772194,1725132429918,-1000.0,0.00030909,30]
[336772195,1725132429941,-356.21909531,0.00030909,30]
[336772196,1725132429963,-1000.0,0.00030909,30]
[336772197,1725132429985,-1000.0,0.00030909,30]
[336772198,1725132430008,-1000.0,0.00030909,30]
[336772199,1725132430031,-1000.0,0.00030909,30]
[336772200,1725132430054,-380.90044684,0.00030909,30]
[336772201,1725132430077,-1000.0,0.00030909,30]
[336772202,1725132430100,-1000.0,0.00030909,30]
[336772203,1725132430123,-1000.0,0.00030909,60]
[336772204,1725132430145,-1003.19593924,0.00030909,30]
[336772205,1725132430169,-233.78522953,0.00030909,60]
[336772206,1725132430192,-193.0,0.00030909,30]
[336772207,1725132430215,-193.0,0.00030909,30]
[336772208,1725132430244,-488.62272647,0.00030909,30]
[336772209,1725132430268,-999.999998,0.00030909,120]
[336772210,1725132430291,-365.18463386,0.00030909,30]
[336772211,1725132430314,-530.21312462,0.00030909,60]
[336772212,1725132430337,-837.70646072,0.00030909,30]
[336772213,1725132430361,-1000.0,0.00030909,30]
[336772214,1725132430384,-1923.25262575,0.00030909,30]
[336772215,1725132430410,-706.90192779,0.00030909,30]
[336772216,1725132430433,-498.4069354,0.00030909,30]
[336772217,1725132430458,-381.15295639,0.00030909,30]
[336772218,1725132430483,-1205.75480558,0.00030909,120]
[336772219,1725132430508,-620.9856808,0.00030909,30]
[336772220,1725132430531,-253.58306633,0.00030909,30]
[336772221,1725132430553,-820.54283898,0.00030909,30]
[336772222,1725132430577,-828.39100871,0.00030909,30]
[336772223,1725132430600,-368.72038769,0.00030909,30]
[336772224,1725132430624,-892.29524492,0.00030909,30]
[336772225,1725132430649,-479.09645586,0.00030909,120]
[336772226,1725132430672,-199.71394601,0.00030909,30]
[336772227,1725132430696,-921.81965151,0.00030909,30]
[336772228,1725132430720,-336.92222266,0.00030909,30]
[336772229,1725132430745,-307.10012743,0.00030909,120]
[336772230,1725132430770,-663.6539829,0.00030909,30]
[336772231,1725132430794,-12000.0,0.00030909,32]
[336772232,1725132430817,-847.91672198,0.00030909,30]
[336772233,1725132430842,-195.2809424,0.00030909,30]
[336772234,1725132430866,-556.83219872,0.00030909,30]
[336772235,1725132430891,-522.84140962,0.00030909,30]
[336772236,1725132430915,-255.77965883,0.00030909,30]
[336772237,1725132430938,-288.63076222,0.00030909,31]
[336772238,1725132430962,-1403.40352611,0.00030909,30]
[336772239,1725132430986,-769.857459,0.00030909,120]
[336772240,1725132431010,-1097.48182594,0.00030909,30]
[336772241,1725132431034,-1069.41117606,0.00030909,30]
[336772242,1725132431058,-289.53105239,0.00030909,30]
[336772243,1725132431081,-228.95704827,0.00030909,60]
[336772244,1725132431105,-266.0,0.00030909,30]
[336772245,1725132431128,-271.47368243,0.00030909,120]
[336772246,1725132431151,-170.51267265,0.00030909,120]
[336772247,1725132431173,-711.97367071,0.00030909,30]
[336772248,1725132431197,-1669.24973165,0.00030909,30]
[336772249,1725132431220,-3157.4228,0.00030909,30]
[336772250,1725132431243,-6275.60893863,0.00030909,30]
[336772251,1725132431523,-3036.65973044,0.00030909,30]
[336772252,1725132431547,-2647.83145589,0.00030909,30]
[336772253,1725132431571,-2269.28616555,0.00030909,30]
[336772254,1725132431594,-1923.87030389,0.00030909,30]
[336772255,1725132431617,-6035.09235607,0.00030909,30]
[336772256,1725132431639,-2500.0,0.00030909,30]
[336772257,1725132431662,-3000.0,0.00030909,30]
[336772258,1725132431684,-5346.99325701,0.00030909,30]
[336772259,1725132431708,-4718.26532158,0.00030909,30]
[336772260,1725132431731,-1524.32338316,0.00030909,30]
[336772261,1725132431754,-2942.14468519,0.00030909,30]
[336772262,1725132431777,-2738.98253873,0.00030909,30]
[336772263,1725132431800,-1931.19349648,0.00030909,30]
[336772264,1725132431824,-2573.84954579,0.00030909,30]
[336772265,1725132431847,-1695.24582757,0.00030909,30]
[336772266,1725132431870,-2225.29613447,0.00030909,30]
[336772267,1725132431893,-3511.0216316,0.00030909,30]
[336772268,1725132431916,-2193.61433985,0.00030909,30]
[336772269,1725132431939,-16817.43209752,0.00030909,60]
[336772270,1725132431963,-2049.34137671,0.00030909,30]
[336772271,1725132431985,-2106.27155925,0.00030909,30]
[336772272,1725132432010,-400.0,0.00030909,120]
[336772273,1725132432035,-554.16490947,0.00030909,30]
[336772274,1725132432060,-90370.97107096,0.00030909,30]
[336772275,1725132432084,-10000.0,0.00030909,30]
[336772276,1725132432108,-10000.0,0.00030909,60]
[336772277,1725132432132,-1006.95535418,0.00030909,120]
[336772278,1725132432155,-5244.644742,0.00030909,120]
[336772279,1725132432178,-637.9464771,0.00030909,120]
[336772280,1725132432202,-316.77762917,0.00030909,120]
[336772281,1725132432226,-993.0,0.00030909,30]
[336772282,1725132432251,-2000.0,0.00030909,30]
[336772283,1725132432274,-2057.0,0.00030909,30]
[336772284,1725132432298,-155.554048,0.00030909,40]
[336772285,1725132432322,-155.554048,0.00030909,40]
[336772286,1725132432345,-193.0,0.00030909,30]
[336772287,1725132432368,-1000.0,0.00030909,30]
[336772288,1725132432390,-1000.0,0.00030909,30]
[336772289,1725132432418,-1000.0,0.00030909,30]
[336772290,1725132432441,-1000.0,0.00030909,30]
[336772291,1725132432464,-1000.0,0.00030909,30]
[336772292,1725132432488,-1000.0,0.00030909,30]
[336772293,1725132432510,-1000.0,0.00030909,30]
[336772294,1725132432534,-1000.0,0.00030909,30]
[336772295,1725132432557,-1000.0,0.00030909,30]
[336772296,1725132432580,-1000.0,0.00030909,30]
[336772297,1725132432602,-1000.0,0.00030909,30]
[336772298,1725132432626,-1000.0,0.00030909,30]
[336772299,1725132432648,-1000.0,0.00030909,30]
[336772300,1725132432671,-1000.0,0.00030909,30]
[336772301,1725132432694,-1000.0,0.00030909,30]
[336772302,1725132432717,-1000.0,0.00030909,30]
[336772303,1725132432740,-1000.0,0.00030909,30]
[336772304,1725132432763,-1000.0,0.00030909,30]
[336772305,1725132432788,-1000.0,0.00030909,30]
[336772306,1725132432812,-1000.0,0.00030909,30]
[336772307,1725132432835,-1000.0,0.00030909,30]
[336772308,1725132432858,-1000.0,0.00030909,30]
[336772309,1725132432881,-1000.0,0.00030909,30]
[336772310,1725132432904,-1000.0,0.00030909,30]
[336772311,1725132432928,-1000.0,0.00030909,30]
[336772312,1725132432960,-1000.0,0.00030909,30]
[336772313,1725132432983,-1000.0,0.00030909,30]
[336772314,1725132433006,-1000.0,0.00030909,30]
[336772315,1725132433028,-1000.0,0.00030909,30]
[336772316,1725132433051,-1000.0,0.00030909,30]
[336772324,1725132463884,193.0,0.00030909,30]
[336772325,1725132464183,186.0,0.00030909,30]
[336772326,1725132477967,164.37647516,0.0001,2]
[336772329,1725132518460,45706.09895362,0.00030909,30]
[336772330,1725132518642,151.83999919,0.00030909,120]
[336772332,1725132519133,1000.0,0.00030909,30]
[336772333,1725132519629,1000.0,0.00030909,30]
[336772334,1725132520079,1000.0,0.00030909,30]
[336772337,1725132520458,1000.0,0.00030909,30]
[336772339,1725132520886,1000.0,0.00030909,30]
[336772340,1725132521589,1000.0,0.00030909,30]
[336772341,1725132522004,1000.0,0.00030909,30]
[336772342,1725132522444,1000.0,0.00030909,30]
[336772343,1725132523568,1000.0,0.00030909,30]
[336772344,1725132523683,1000.0,0.00030909,30]
[336772345,1725132523967,1000.0,0.00030909,30]
[336772346,1725132524361,1000.0,0.00030909,30]
[336772347,1725132524833,1000.0,0.00030909,30]
[336772348,1725132525434,1000.0,0.00030909,30]
[336772349,1725132525905,1000.0,0.00030909,30]
[336772350,1725132526273,1000.0,0.00030909,30]
[336772351,1725132526656,1000.0,0.00030909,30]
[336772352,1725132527054,1000.0,0.00030909,30]
[336772353,1725132527507,1000.0,0.00030909,30]
[336772354,1725132528115,1000.0,0.00030909,30]
[336772355,1725132528737,1000.0,0.00030909,30]
[336772356,1725132529283,1000.0,0.00030909,30]
[336772357,1725132529853,1000.0,0.00030909,30]
[336772358,1725132530316,1000.0,0.00030909,30]
[336772359,1725132530769,1698.231619,0.00030909,30]
[336772373,1725132632064,-250.0,0.00011556,2]
[336772374,1725132632075,-538.87,0.00011557,2]
[336772375,1725132632084,-250.0,0.00011557,2]
[336772376,1725132632094,-1500.0,0.00011568,2]
[336772378,1725132632103,-199.34,0.00011629,2]
[336772380,1725132632113,-72.10557355,0.00011629,2]
[336772382,1725132632128,-1740.0,0.00011629,2]
[336772383,1725132632140,-250.33780553,0.00011629,2]
[336772384,1725132632230,-1032.01313129,0.00011629,2]
[336772385,1725132632241,-2691.68471445,0.00011629,2]
[336772386,1725132632252,-499.60047608,0.00011629,2]
[336772388,1725132638263,-771.07115909,0.00011629,2]
[336772389,1725132638300,-4085.98540602,0.00011629,2]
[336772390,1725132638310,-1000.0,0.00011641,2]
[336772391,1725132638319,-150.0,0.00011688,2]
[336772392,1725132638328,-637.23815909,0.00011747,2]
[336772393,1725132638339,-1202.39730484,0.00011747,2]
[336772394,1725132638423,-652.16989619,0.00011747,2]
[336772395,1725132638460,-420.0,0.00011747,2]
[336772396,1725132638494,-594.82549905,0.00011747,2]
[336772398,1725132638505,-270.9400001,0.00011747,2]
[336772460,1725132640132,-3579.8558231,0.00011747,2]
[336772461,1725132640143,-2778.37187532,0.00011747,2]
[336772463,1725132640183,-1609.608,0.00011747,2]
[336772464,1725132640194,-12144.59344231,0.00011747,2]
[336772465,1725132640203,-150.0,0.00011747,2]
[336772466,1725132640214,-250.0,0.00011936,2]
[336772467,1725132640223,-233.76,0.00011943,2]
[336772468,1725132640232,-499.99,0.00011943,2]
[336772469,1725132640241,-800.0,0.000122,4]
[336772470,1725132640250,-1600.0,0.000123,4]
[336772471,1725132640259,-154.56,0.00012317,2]
[336772472,1725132640268,-600.0,0.0001235,2]
[336772473,1725132640277,-600.0,0.0001235,2]
[336772474,1725132640286,-600.0,0.0001235,2]
[336772475,1725132640296,-600.0,0.0001235,2]
[336772476,1725132640306,-600.0,0.0001235,2]
[336772477,1725132640315,-600.0,0.0001235,2]
[336772478,1725132640325,-600.0,0.0001235,2]
[336772479,1725132640334,-799.76428894,0.0001235,2]
[336772480,1725132640343,-7058.95560395,0.0001239,2]
[336772481,1725132640352,-2400.0,0.000124,4]
[336772482,1725132640362,-727.0,0.00012478,2]
[336772483,1725132640371,-2441.32211403,0.000125,4]
[336772484,1725132640382,-676.78766256,0.000125,4]
[336772485,1725132640487,-81.89022341,0.000125,4]
[336772486,1725132640498,-1002.21536221,0.000126,4]
[336772487,1725132640512,-2016.437266,0.000126,4]
[336772488,1725132640564,-981.34737179,0.000126,4]
[336772489,1725132640573,-61.87228419,0.000127,4]
[336772491,1725132640584,-344.62556429,0.000127,4]
[336772492,1725132640595,-393.50215152,0.000127,4]
[336772493,1725132640604,-5840.9946784,0.000127,2]
[336772494,1725132640615,-522.77982189,0.000127,2]
[336772495,1725132643159,-5948.3804,0.000127,2]
[336772496,1725132643171,-2526.59999998,0.000127,2]
[336772497,1725132643182,-5790.81210628,0.000127,2]
[336772498,1725132643193,-150.0,0.0001278,2]
[336772499,1725132643204,-176.4451,0.00012797,2]
[336772500,1725132643216,-1500.0,0.00012797,2]
[336772501,1725132643227,-407.8642,0.000128,2]
[336772502,1725132643238,-3522.17630593,0.000128,2]
[336772503,1725132643249,-311.24,0.000128,2]
[336772702,1725132646127,-7834.88849407,0.000128,2]
[336772703,1725132646136,-75262.1002765,0.000128,2]
[336772704,1725132646147,-756.64813238,0.000128,2]
[336772705,1725132646156,-800.0,0.000128,4]
[336772706,1725132646165,-166.67060189,0.000128,2]
[336772707,1725132646174,-500.0,0.00012873,2]
[336772708,1725132646183,-150.0,0.00012885,2]
[336772709,1725132646192,-311.84543466,0.0001289,2]
[336772710,1725132646201,-3746.6023105,0.00012897,2]
[336772711,1725132646250,-32061.7966895,0.00012897,2]
[336772712,1725132646260,-4289.745,0.00012897,2]
[336772713,1725132646270,-8988.697,0.00012897,2]
[336772714,1725132646282,-730.0594,0.00012897,2]
[336772715,1725132646291,-2117.1519,0.00012897,2]
[336772716,1725132646302,-151.0,0.00012897,2]
[336772717,1725132646312,-1166.751709,0.00012897,2]
[336772718,1725132646322,-307.876253,0.00012897,2]
[336772719,1725132646331,-1166.751709,0.00012897,2]
[336772720,1725132646341,-307.876253,0.00012897,2]
[336772721,1725132646350,-151.0,0.00012897,2]
[336772722,1725132646359,-188.48522,0.00012897,2]
[336772723,1725132646372,-188.48522,0.00012897,2]
[336772724,1725132646380,-151.0,0.00012897,2]
[336772725,1725132646389,-151.0,0.00012897,2]
[336772726,1725132646398,-151.0,0.00012897,2]
[336772727,1725132646408,-151.0,0.00012897,2]
[336772729,1725132646417,-154.517343,0.00012897,2]
[336772730,1725132646426,-154.517343,0.00012897,2]
[336772731,1725132646435,-542.813411,0.00012897,2]
[336772732,1725132646445,-542.813411,0.00012897,2]
[336772733,1725132646456,-1841.076696,0.00012897,2]
[336772734,1725132646469,-151.0,0.00012897,2]
[336772735,1725132646480,-1841.076696,0.00012897,2]
[336772736,1725132646488,-319.203619,0.00012897,2]
[336772737,1725132646498,-319.203619,0.00012897,2]
[336772738,1725132646508,-151.0,0.00012897,2]
[336772739,1725132646519,-735.36666,0.00012897,2]
[336772740,1725132646529,-735.36666,0.00012897,2]
[336772741,1725132646538,-665.215884,0.00012897,2]
[336772742,1725132646549,-665.215884,0.00012897,2]
[336772743,1725132646560,-2243.07569,0.00012897,2]
[336772744,1725132646569,-2243.07569,0.00012897,2]
[336772745,1725132646579,-151.0,0.00012897,2]
[336772746,1725132646591,-360.48023,0.00012897,2]
[336772747,1725132646603,-360.48023,0.00012897,2]
[336772748,1725132646613,-1424.751646,0.00012897,2]
[336772749,1725132646622,-1424.751646,0.00012897,2]
[336772750,1725132646631,-151.0,0.00012897,2]
[336772751,1725132646641,-218.629138,0.00012897,2]
[336772752,1725132646651,-172.35953,0.00012897,2]
[336772753,1725132646660,-172.35953,0.00012897,2]
[336772754,1725132646669,-151.0,0.00012897,2]
[336772755,1725132646678,-151.0,0.00012897,2]
[336772756,1725132646687,-210.660318,0.00012897,2]
[336772757,1725132646696,-252.624226,0.00012897,2]
[336772758,1725132646704,-151.0,0.00012897,2]
[336772759,1725132646714,-210.660318,0.00012897,2]
[336772760,1725132646722,-151.0,0.00012897,2]
[336772761,1725132646732,-252.624226,0.00012897,2]
[336772762,1725132646740,-151.0,0.00012897,2]
[336772763,1725132646750,-151.0,0.00012897,2]
[336772764,1725132646759,-151.0,0.00012897,2]
[336772765,1725132646768,-151.0,0.00012897,2]
[336772766,1725132646777,-151.0,0.00012897,2]
[336772767,1725132646786,-151.0,0.00012897,2]
[336772768,1725132646795,-183.421616,0.00012897,2]
[336772769,1725132646804,-151.0,0.00012897,2]
[336772770,1725132646814,-183.421616,0.00012897,2]
[336772771,1725132646823,-151.0,0.00012897,2]
[336772772,1725132646832,-151.0,0.00012897,2]
[336772773,1725132646841,-151.0,0.00012897,2]
[336772774,1725132646851,-204.643135,0.00012897,2]
[336772775,1725132646860,-204.643135,0.00012897,2]
[336772776,1725132646869,-204.643135,0.00012897,2]
[336772777,1725132646878,-204.643135,0.00012897,2]
[336772778,1725132646887,-234.797882,0.00012897,2]
[336772779,1725132646896,-234.797882,0.00012897,2]
[336772780,1725132646906,-151.0,0.00012897,2]
[336772781,1725132646915,-151.0,0.00012897,2]
[336772782,1725132646924,-10000.0,0.00012897,2]
[336772783,1725132646933,-10000.0,0.00012897,2]
[336772784,1725132646942,-10000.0,0.00012897,2]
[336772785,1725132646951,-203.087022,0.00012897,2]
[336772786,1725132646960,-203.087022,0.00012897,2]
[336772787,1725132646969,-151.0,0.00012897,2]
[336772788,1725132646978,-151.0,0.00012897,2]
[336772789,1725132646987,-174.6233,0.00012897,2]
[336772790,1725132646997,-151.0,0.00012897,2]
[336772791,1725132647006,-174.6233,0.00012897,2]
[336772792,1725132647015,-151.0,0.00012897,2]
[336772793,1725132647024,-194.826857,0.00012897,2]
[336772794,1725132647033,-194.826857,0.00012897,2]
[336772795,1725132647042,-2839.0033,0.000129,2]
[336772796,1725132647051,-545.9255,0.000129,2]
[336772797,1725132647061,-1841.076696,0.000129,2]
[336772798,1725132647070,-151.0,0.000129,2]
[336772799,1725132647079,-1841.076696,0.000129,2]
[336772800,1725132647089,-319.203619,0.000129,2]
[336772801,1725132647098,-319.203619,0.000129,2]
[336772802,1725132647107,-151.0,0.000129,2]
[336772803,1725132647117,-735.36666,0.000129,2]
[336772804,1725132647126,-735.36666,0.000129,2]
[336772805,1725132647135,-665.215884,0.000129,2]
[336772806,1725132647145,-665.215884,0.000129,2]
[336772807,1725132647154,-974.94081443,0.000129,2]
[336772808,1725132647167,-1268.13487557,0.000129,2]
[336772809,1725132647176,-2243.07569,0.000129,2]
[336772810,1725132647185,-151.0,0.000129,2]
[336772811,1725132647194,-360.48023,0.000129,2]
[336772812,1725132647203,-360.48023,0.000129,2]
[336772813,1725132647212,-1424.751646,0.000129,2]
[336772814,1725132647221,-1424.751646,0.000129,2]
[336772815,1725132647232,-151.969417,0.000129,2]
[336772816,1725132647241,-172.35953,0.000129,2]
[336772817,1725132647250,-172.35953,0.000129,2]
[336772818,1725132647261,-210.660318,0.000129,2]
[336772819,1725132647270,-252.624226,0.000129,2]
[336772820,1725132647280,-151.0,0.000129,2]
[336772821,1725132647289,-210.660318,0.000129,2]
[336772822,1725132647298,-151.0,0.000129,2]
[336772823,1725132647308,-252.624226,0.000129,2]
[336772824,1725132647318,-151.0,0.000129,2]
[336772825,1725132647327,-200.927322,0.000129,2]
[336772826,1725132647336,-183.421616,0.000129,2]
[336772827,1725132647346,-800.0,0.000129,4]
[336772828,1725132647355,-183.421616,0.000129,2]
[336772829,1725132647365,-166.67060189,0.000129,2]
[336772830,1725132647374,-162.97553613,0.000129,2]
[336772831,1725132647383,-234.544592,0.000129,2]
[336772832,1725132647392,-759.071322,0.000129,2]
[336772833,1725132647401,-234.544592,0.000129,2]
[336772834,1725132647411,-151.0,0.000129,2]
[336772835,1725132647420,-151.0,0.000129,2]
[336772836,1725132647429,-1000.0,0.000129,2]
[336772837,1725132647439,-1016.667596,0.000129,2]
[336772838,1725132647448,-1016.667596,0.000129,2]
[336772839,1725132647457,-579.775161,0.000129,2]
[336772840,1725132647468,-579.775161,0.000129,2]
[336772841,1725132647478,-500.0,0.00012973,2]
[336772842,1725132647488,-500.0,0.00012973,2]
[336772843,1725132647497,-153.15,0.0001298,2]
[336772844,1725132647506,-429.02222097,0.0001298,2]
[336772845,1725132647516,-354.65925411,0.00012988,2]
[336772846,1725132647525,-500.0,0.00012988,2]